fUSD/lending_fUSD_20250511
["ID","MTS","AMOUNT","RATE_DAILY","PERIOD"]
[360724416,1746953468203,-1292.83,0.00019894,2]
[360724417,1746953468211,-400.0,0.00019894,2]
[360724418,1746953468220,-999.0,0.00019894,2]
[360724419,1746953468229,-1292.83,0.00019894,2]
[360724420,1746953468239,-400.0,0.00019894,2]
[360724421,1746953468248,-200.99366644,0.00019894,2]
[360724422,1746953468891,-400.0,0.00019893,2]
[360724423,1746953468901,-798.00633356,0.00019894,2]
[360724424,1746953468911,-1292.83,0.00019894,2]
[360724425,1746953468922,-400.0,0.00019894,2]
[360724426,1746953468931,-999.0,0.00019894,2]
[360724427,1746953468940,-1292.83,0.00019894,2]
[360724428,1746953468949,-611.22,0.00019894,2]
[360724429,1746953468959,-161.79155838,0.00019894,2]
[360724430,1746953468969,-1292.83,0.00019894,2]
[360724431,1746953468978,-611.22,0.00019894,2]
[360724432,1746953468988,-611.22,0.00019894,2]
[360724433,1746953468998,-1292.83,0.00019894,2]
[360724434,1746953469009,-611.22,0.00019894,2]
[360724435,1746953469019,-1292.83,0.00019894,2]
[360724436,1746953469029,-611.22,0.00019894,2]
[360724437,1746953469039,-1292.83,0.00019894,2]
[360724438,1746953469048,-611.22,0.00019894,2]
[360724439,1746953469058,-400.0,0.00019894,2]
[360724440,1746953469068,-611.22,0.00019894,2]
[360724441,1746953469079,-400.0,0.00019894,2]
[360724442,1746953469090,-611.22,0.00019894,2]
[360724443,1746953469102,-400.0,0.00019894,2]
[360724444,1746953469320,-400.0,0.00019894,2]
[360724445,1746953469331,-400.0,0.00019894,2]
[360724446,1746953469341,-400.0,0.00019894,2]
[360724447,1746953469350,-400.0,0.00019894,2]
[360724448,1746953469359,-165.756568,0.00019894,2]
[360724449,1746953469369,-400.0,0.00019894,2]
[360724450,1746953469379,-400.0,0.00019894,2]
[360724451,1746953469388,-165.756568,0.00019894,2]
[360724452,1746953469398,-501.94006714,0.00019894,2]
[360724453,1746953469407,-400.0,0.00019894,2]
[360724454,1746953469419,-400.0,0.00019894,2]
[360724455,1746953469429,-400.0,0.00019894,2]
[360724456,1746953469438,-165.756568,0.00019894,2]
[360724457,1746953469448,-400.0,0.00019894,2]
[360724458,1746953469458,-400.0,0.00019894,2]
[360724459,1746953469469,-165.756568,0.00019894,2]
[360724460,1746953469478,-400.0,0.00019894,2]
[360724461,1746953469488,-400.0,0.00019894,2]
[360724462,1746953469497,-165.756568,0.00019894,2]
[360724463,1746953469507,-400.0,0.00019894,2]
[360724464,1746953469517,-400.0,0.00019894,2]
[360724465,1746953469526,-400.0,0.00019894,2]
[360724466,1746953469535,-400.0,0.00019894,2]
[360724467,1746953469546,-400.0,0.00019894,2]
[360724468,1746953469555,-400.0,0.00019894,2]
[360724469,1746953469564,-318.15,0.00019894,2]
[360724470,1746953469574,-400.0,0.00019894,2]
[360724471,1746953469585,-400.0,0.00019894,2]
[360724472,1746953469595,-400.0,0.00019894,2]
[360724473,1746953469605,-354.64,0.00019894,2]
[360724474,1746953469614,-400.0,0.00019894,2]
[360724475,1746953469624,-400.0,0.00019894,2]
[360724476,1746953469634,-400.0,0.00019894,2]
[360724477,1746953469644,-243.94929534,0.00019894,2]
[360724478,1746953469679,-400.0,0.00019893,2]
[360724479,1746953469689,-156.05070466,0.00019894,2]
[360724480,1746953469699,-400.0,0.00019894,2]
[360724481,1746953469709,-400.0,0.00019894,2]
[360724482,1746953469719,-400.0,0.00019894,2]
[360724483,1746953469729,-400.0,0.00019894,2]
[360724484,1746953469738,-400.0,0.00019894,2]
[360724485,1746953469747,-400.0,0.00019894,2]
[360724486,1746953469758,-881.24,0.00019894,2]
[360724487,1746953469767,-400.0,0.00019894,2]
[360724488,1746953469777,-165.21,0.00019894,2]
[360724489,1746953469787,-881.24,0.00019894,2]
[360724490,1746953469796,-400.0,0.00019894,2]
[360724491,1746953469805,-881.24,0.00019894,2]
[360724492,1746953469815,-881.24,0.00019894,2]
[360724493,1746953469824,-334.13247322,0.00019894,2]
[360724494,1746953469836,-547.10752678,0.00019894,2]
[360724495,1746953469846,-881.24,0.00019894,2]
[360724496,1746953469855,-400.0,0.00019894,2]
[360724497,1746953469864,-881.24,0.00019894,2]
[360724498,1746953469874,-881.24,0.00019894,2]
[360724499,1746953469883,-65.20594227,0.00019894,2]
[360724507,1746954117811,250.0,0.00017,2]
[360724508,1746954256198,232.51644824,0.00017114,2]
[360724509,1746954300800,330.88,0.00020575,30]
[360724510,1746954329334,527.53,0.00025879,120]
[360724511,1746954329732,527.53,0.00028232,120]
[360724512,1746954447122,-540.265504,0.00018693,2]
[360724513,1746954447143,-466.18,0.00018787,2]
[360724514,1746954447165,-33.83060555,0.00018821,2]
[360724515,1746954503129,151.97,0.00013699,2]
[360724516,1746954512045,811.44,0.00016829,2]
[360724556,1746954632112,-493.69939445,0.00018821,2]
[360724558,1746954632122,-250.0,0.00018834,2]
[360724560,1746954632131,-1200.0,0.00018847,2]
[360724561,1746954632140,-23900.0,0.00018848,2]
[360724563,1746954632149,-1000.0,0.00018852,2]
[360724565,1746954632159,-250.0,0.00018866,2]
[360724568,1746954632168,-172.64,0.00018869,2]
[360724569,1746954632177,-1191.9,0.00018891,2]
[360724570,1746954632187,-212.72776435,0.000189,2]
[360724571,1746954632197,-150.0,0.00018986,7]
[360724572,1746954632206,-300.0,0.00019,2]
[360724573,1746954632216,-811.44,0.00019093,2]
[360724574,1746954632225,-212.72776435,0.000194,2]
[360724575,1746954632234,-164.52,0.00019424,2]
[360724576,1746954632243,-500.0,0.0001961,2]
[360724577,1746954632252,-607.26825464,0.0001961,2]
[360724578,1746954632261,-5936.0,0.00019611,2]
[360724579,1746954632270,-1182.244,0.00019611,2]
[360724580,1746954632279,-807.23329096,0.00019613,2]
[360724581,1746954632288,-207.4,0.00019781,2]
[360724582,1746954632298,-200.0,0.00019789,2]
[360724583,1746954632307,-1084.07777828,0.00019791,2]
[360724584,1746954632316,-166.85169381,0.00019792,2]
[360724585,1746954632326,-4922.51963268,0.00019792,2]
[360724587,1746954632335,-157.90745076,0.00019792,2]
[360724589,1746954632344,-452.6382,0.00019792,2]
[360724591,1746954632354,-230.3431,0.00019793,2]
[360724593,1746954632363,-168.6091457,0.00019794,2]
[360724595,1746954632372,-1084.07777822,0.00019803,2]
[360724597,1746954632381,-4922.51963266,0.00019804,2]
[360724599,1746954632390,-1084.07777822,0.00019815,2]
[360724601,1746954632399,-4922.51963266,0.00019816,2]
[360724603,1746954632408,-1084.07777822,0.00019827,2]
[360724605,1746954632417,-4922.51963266,0.00019828,2]
[360724607,1746954632427,-166.8516938,0.00019828,2]
[360724609,1746954632436,-1084.07777822,0.00019839,2]
[360724611,1746954632446,-4922.51963266,0.0001984,2]
[360724613,1746954632456,-167.143,0.00019847,2]
[360724615,1746954632465,-150.0,0.00019847,2]
[360724617,1746954632475,-1303.0,0.00019847,2]
[360724619,1746954632484,-1084.07777822,0.00019851,2]
[360724621,1746954632494,-4922.51963266,0.00019851,2]
[360724623,1746954632503,-1084.07777822,0.00019863,2]
[360724625,1746954632514,-4922.51963266,0.00019863,2]
[360724627,1746954632523,-166.8516938,0.00019864,2]
[360724629,1746954632533,-500.0,0.00019873,2]
[360724630,1746954632543,-423.40347529,0.00019873,2]
[360724632,1746954632552,-1084.07777822,0.00019875,2]
[360724634,1746954632562,-4922.51963266,0.00019875,2]
[360724636,1746954632571,-158.74,0.00019881,2]
[360724638,1746954632581,-1579.884,0.00019881,2]
[360724640,1746954632590,-163.496,0.00019881,2]
[360724642,1746954632600,-285.87,0.00019882,2]
[360724644,1746954632609,-971.22101015,0.00019883,2]
[360724645,1746954632618,-5956.8671014,0.00019883,2]
[360724646,1746954632628,-1602.0934627,0.00019885,2]
[360724647,1746954632637,-2545.9203953,0.00019885,2]
[360724648,1746954632647,-1084.07777822,0.00019887,2]
[360724649,1746954632657,-4922.51963266,0.00019887,2]
[360724650,1746954632667,-171.99008369,0.0001989,2]
[360724651,1746954632677,-277.11836753,0.0001989,2]
[360724652,1746954632686,-167.65766573,0.0001989,2]
[360724653,1746954632696,-500.0,0.0001989,2]
[360724654,1746954632706,-500.0,0.0001989,2]
[360724655,1746954632716,-500.0,0.0001989,2]
[360724656,1746954632725,-500.0,0.0001989,2]
[360724657,1746954632735,-500.0,0.0001989,2]
[360724658,1746954632744,-426.72794411,0.0001989,2]
[360724659,1746954632762,-73.27205589,0.0001989,2]
[360724660,1746954632772,-500.0,0.0001989,2]
[360724661,1746954632782,-500.0,0.0001989,2]
[360724662,1746954632791,-500.0,0.0001989,2]
[360724663,1746954632801,-500.0,0.0001989,2]
[360724664,1746954632810,-194.56218897,0.0001989,2]
[360724665,1746954632820,-400.0,0.00019891,2]
[360724666,1746954632829,-506.84825262,0.00019891,2]
[360724667,1746954632839,-513.50320962,0.00019891,2]
[360724668,1746954632848,-450.0,0.00019891,2]
[360724669,1746954632858,-470.0,0.00019891,2]
[360724670,1746954632868,-428.37457708,0.00019891,2]
[360724671,1746954632878,-397.85162297,0.00019891,2]
[360724672,1746954632887,-400.0,0.00019891,2]
[360724673,1746954632897,-436.77328701,0.00019891,2]
[360724674,1746954632906,-450.0,0.00019891,2]
[360724675,1746954632916,-470.0,0.00019891,2]
[360724676,1746954632925,-470.0,0.00019891,2]
[360724677,1746954632934,-501.76979941,0.00019891,2]
[360724678,1746954632947,-470.0,0.00019891,2]
[360724679,1746954632957,-445.48385582,0.00019891,2]
[360724680,1746954632970,-400.0,0.00019891,2]
[360724681,1746954632983,-400.0,0.00019891,2]
[360724682,1746954632994,-400.0,0.00019891,2]
[360724683,1746954633005,-308.00879493,0.00019891,2]
[360724684,1746954633030,-141.99120507,0.00019891,2]
[360724685,1746954633040,-400.0,0.00019891,2]
[360724686,1746954633051,-19.49560234,0.00019891,2]
[360724687,1746954633064,-380.50439766,0.00019891,2]
[360724688,1746954633075,-152.75293734,0.00019891,2]
[360724689,1746954633088,-247.24706266,0.00019891,2]
[360724690,1746954633099,-400.0,0.00019891,2]
[360724691,1746954633109,-401.97789605,0.00019891,2]
[360724692,1746954633119,-139.11434179,0.00019891,2]
[360724693,1746954633132,-294.67618421,0.00019891,2]
[360724694,1746954633142,-158.99891201,0.00019891,2]
[360724695,1746954633151,-341.25747677,0.00019891,2]
[360724696,1746954633163,-109.8252265,0.00019891,2]
[360724697,1746954633172,-373.97882899,0.00019891,2]
[360724698,1746954633182,-350.30553182,0.00019891,2]
[360724699,1746954633202,-149.69446818,0.00019891,2]
[360724700,1746954633212,-400.0,0.00019891,2]
[360724701,1746954633222,-154.66709703,0.00019891,2]
[360724702,1746954633234,-245.33290297,0.00019891,2]
[360724703,1746954633245,-400.0,0.00019891,2]
[360724704,1746954633255,-400.0,0.00019891,2]
[360724705,1746954633265,-400.0,0.00019891,2]
[360724706,1746954633276,-400.0,0.00019891,2]
[360724707,1746954633286,-374.79862222,0.00019891,2]
[360724708,1746954633295,-215.29121317,0.00019891,2]
[360724710,1746954637650,-160.04388386,0.00019891,2]
[360724711,1746954637660,-400.0,0.00019891,2]
[360724712,1746954637669,-400.0,0.00019891,2]
[360724713,1746954637679,-506.06238578,0.00019891,2]
[360724714,1746954637688,-203.46282496,0.00019891,2]
[360724715,1746954637700,-513.7381443,0.00019891,2]
[360724716,1746954637709,-400.0,0.00019891,2]
[360724717,1746954637719,-400.0,0.00019891,2]
[360724718,1746954637728,-400.0,0.00019891,2]
[360724719,1746954637738,-1302.439426,0.00019891,2]
[360724720,1746954637747,-963.61,0.00019891,2]
[360724721,1746954637757,-499.40560064,0.00019891,2]
[360724722,1746954637766,-400.0,0.00019891,2]
[360724723,1746954637775,-400.0,0.00019891,2]
[360724724,1746954637785,-400.0,0.00019891,2]
[360724725,1746954637794,-389.87724498,0.00019891,2]
[360724726,1746954637804,-400.0,0.00019891,2]
[360724727,1746954637814,-400.0,0.00019891,2]
[360724728,1746954637823,-517.36337758,0.00019891,2]
[360724729,1746954637832,-400.0,0.00019891,2]
[360724730,1746954637842,-510.61480129,0.00019891,2]
[360724731,1746954637851,-400.0,0.00019891,2]
[360724732,1746954637860,-161.656322,0.00019891,2]
[360724733,1746954637870,-400.0,0.00019891,2]
[360724735,1746954637880,-400.0,0.00019891,2]
[360724736,1746954637890,-400.0,0.00019891,2]
[360724738,1746954637900,-2051.056098,0.00019891,2]
[360724739,1746954637909,-649.0,0.00019891,2]
[360724740,1746954637920,-1380.05,0.00019891,2]
[360724741,1746954637929,-1380.05,0.00019891,2]
[360724742,1746954637939,-1222.57,0.00019891,2]
[360724743,1746954637950,-595.22,0.00019891,2]
[360724744,1746954637959,-1222.57,0.00019891,2]
[360724746,1746954637971,-12881.487069,0.00019891,2]
[360724748,1746954637987,-400.0,0.00019891,2]
[360724750,1746954637996,-400.0,0.00019891,2]
[360724751,1746954638007,-981.7,0.00019891,2]
[360724753,1746954638020,-400.0,0.00019891,2]
[360724755,1746954638029,-981.7,0.00019891,2]
[360724757,1746954638038,-400.0,0.00019891,2]
[360724759,1746954638049,-400.0,0.00019891,2]
[360724761,1746954638058,-530.0,0.00019891,2]
[360724763,1746954638067,-200.0,0.00019891,2]
[360724766,1746954638082,-200.0,0.00019891,2]
[360724768,1746954638091,-400.0,0.00019891,2]
[360724770,1746954638100,-400.0,0.00019891,2]
[360724771,1746954638110,-400.0,0.00019891,2]
[360724773,1746954638119,-400.0,0.00019891,2]
[360724776,1746954638129,-389.52730992,0.00019891,2]
[360724777,1746954638139,-400.0,0.00019891,2]
[360724779,1746954638148,-400.0,0.00019891,2]
[360724781,1746954638157,-400.0,0.00019891,2]
[360724782,1746954638166,-400.0,0.00019891,2]
[360724784,1746954638175,-218.3666763,0.00019891,2]
[360724786,1746954638185,-400.0,0.00019891,2]
[360724788,1746954638196,-400.0,0.00019891,2]
[360724790,1746954638205,-400.0,0.00019891,2]
[360724792,1746954638215,-400.0,0.00019891,2]
[360724793,1746954638224,-400.0,0.00019891,2]
[360724795,1746954638233,-400.0,0.00019891,2]
[360724797,1746954638243,-400.0,0.00019891,2]
[360724799,1746954638252,-400.0,0.00019891,2]
[360724801,1746954638262,-400.0,0.00019891,2]
[360724803,1746954638272,-400.0,0.00019891,2]
[360724805,1746954638281,-500.0,0.00019891,2]
[360724807,1746954638291,-400.0,0.00019891,2]
[360724809,1746954638300,-400.0,0.00019891,2]
[360724811,1746954638309,-400.0,0.00019891,2]
[360724813,1746954638319,-400.0,0.00019891,2]
[360724815,1746954638329,-400.0,0.00019891,2]
[360724816,1746954638338,-155.39610609,0.00019891,2]
[360724817,1746954638347,-400.0,0.00019891,2]
[360724818,1746954638356,-400.0,0.00019891,2]
[360724819,1746954638365,-400.0,0.00019891,2]
[360724820,1746954638374,-400.0,0.00019891,2]
[360724821,1746954638383,-516.84450685,0.00019891,2]
[360724822,1746954638392,-503.11716233,0.00019891,2]
[360724823,1746954638402,-508.14496758,0.00019891,2]
[360724824,1746954638411,-400.0,0.00019891,2]
[360724825,1746954638420,-450.0,0.00019891,2]
[360724826,1746954638430,-219.29278502,0.00019891,2]
[360724827,1746954638438,-400.0,0.00019891,2]
[360724828,1746954638451,-519.48012146,0.00019891,2]
[360724829,1746954638462,-513.67784503,0.00019891,2]
[360724830,1746954638472,-400.0,0.00019891,2]
[360724831,1746954638482,-400.0,0.00019891,2]
[360724832,1746954638492,-400.0,0.00019891,2]
[360724833,1746954638503,-400.0,0.00019891,2]
[360724834,1746954638513,-400.0,0.00019891,2]
[360724835,1746954638522,-400.0,0.00019891,2]
[360724836,1746954638532,-400.0,0.00019891,2]
[360724837,1746954638542,-400.0,0.00019891,2]
[360724838,1746954638551,-1178.19,0.00019891,2]
[360724839,1746954638560,-1178.19,0.00019891,2]
[360724840,1746954638569,-1178.19,0.00019891,2]
[360724841,1746954638579,-518.47958735,0.00019891,2]
[360724842,1746954638589,-400.0,0.00019891,2]
[360724843,1746954638599,-520.58077902,0.00019891,2]
[360724844,1746954638607,-400.0,0.00019891,2]
[360724845,1746954638617,-400.0,0.00019891,2]
[360724846,1746954638626,-400.0,0.00019891,2]
[360724847,1746954638635,-460.71469887,0.00019891,2]
[360724848,1746954638645,-527.21,0.00019891,2]
[360724849,1746954638654,-527.21,0.00019891,2]
[360724850,1746954638663,-400.0,0.00019891,2]
[360724851,1746954638672,-527.21,0.00019891,2]
[360724852,1746954638681,-400.0,0.00019891,2]
[360724853,1746954638691,-400.0,0.00019891,2]
[360724854,1746954638702,-400.0,0.00019891,2]
[360724855,1746954638711,-328.91741791,0.00019891,2]
[360724856,1746954638720,-463.44293017,0.00019891,2]
[360724857,1746954638730,-400.0,0.00019891,2]
[360724858,1746954638739,-400.0,0.00019891,2]
[360724859,1746954638748,-400.0,0.00019891,2]
[360724860,1746954638758,-417.5,0.00019891,2]
[360724861,1746954638767,-454.35102421,0.00019891,2]
[360724862,1746954638776,-417.5,0.00019891,2]
[360724863,1746954638787,-417.5,0.00019891,2]
[360724864,1746954638796,-400.0,0.00019891,2]
[360724865,1746954638805,-400.0,0.00019891,2]
[360724866,1746954638814,-400.0,0.00019891,2]
[360724867,1746954638824,-450.0,0.00019891,2]
[360724868,1746954638833,-498.02399997,0.00019891,2]
[360724869,1746954638843,-400.0,0.00019891,2]
[360724870,1746954638853,-500.0,0.00019891,2]
[360724871,1746954638862,-500.0,0.00019891,2]
[360724872,1746954638871,-400.0,0.00019891,2]
[360724873,1746954638880,-400.0,0.00019891,2]
[360724874,1746954638889,-450.0,0.00019891,2]
[360724875,1746954638899,-400.0,0.00019891,2]
[360724876,1746954638908,-400.0,0.00019891,2]
[360724877,1746954638917,-400.0,0.00019891,2]
[360724878,1746954638926,-420.48,0.00019891,2]
[360724879,1746954638935,-420.48,0.00019891,2]
[360724880,1746954638945,-400.0,0.00019891,2]
[360724881,1746954638954,-400.0,0.00019891,2]
[360724882,1746954638964,-400.0,0.00019891,2]
[360724883,1746954638976,-400.0,0.00019891,2]
[360724884,1746954638985,-400.0,0.00019891,2]
[360724885,1746954638994,-400.0,0.00019891,2]
[360724886,1746954639003,-531.15081528,0.00019891,2]
[360724887,1746954639017,-525.09568508,0.00019891,2]
[360724888,1746954639030,-400.0,0.00019891,2]
[360724889,1746954639039,-432.99,0.00019891,2]
[360724890,1746954639048,-483.06609842,0.00019891,2]
[360724891,1746954639059,-470.97,0.00019891,2]
[360724892,1746954639069,-470.97,0.00019891,2]
[360724893,1746954639078,-532.91118886,0.00019891,2]
[360724894,1746954639087,-400.0,0.00019891,2]
[360724895,1746954639097,-400.0,0.00019891,2]
[360724896,1746954639106,-400.0,0.00019891,2]
[360724897,1746954639115,-588.88,0.00019891,2]
[360724898,1746954639125,-588.88,0.00019891,2]
[360724899,1746954639134,-588.88,0.00019891,2]
[360724900,1746954639143,-503.31,0.00019891,2]
[360724901,1746954639152,-503.31,0.00019891,2]
[360724902,1746954639162,-400.0,0.00019891,2]
[360724903,1746954639171,-779.75,0.00019891,2]
[360724904,1746954639181,-779.75,0.00019891,2]
[360724905,1746954639191,-779.75,0.00019891,2]
[360724906,1746954639201,-400.0,0.00019891,2]
[360724907,1746954639210,-400.0,0.00019891,2]
[360724908,1746954639219,-400.0,0.00019891,2]
[360724909,1746954639230,-400.0,0.00019891,2]
[360724910,1746954639240,-928.74,0.00019891,2]
[360724911,1746954639252,-928.74,0.00019891,2]
[360724912,1746954639263,-400.0,0.00019891,2]
[360724913,1746954639273,-400.0,0.00019891,2]
[360724914,1746954639283,-400.0,0.00019891,2]
[360724915,1746954639292,-400.0,0.00019891,2]
[360724916,1746954639303,-400.0,0.00019891,2]
[360724917,1746954639316,-400.0,0.00019891,2]
[360724918,1746954639328,-400.0,0.00019891,2]
[360724919,1746954639340,-463.58066798,0.00019891,2]
[360724921,1746954639350,-400.0,0.00019891,2]
[360724922,1746954639360,-400.0,0.00019891,2]
[360724923,1746954639369,-400.0,0.00019891,2]
[360724924,1746954639379,-400.0,0.00019891,2]
[360724925,1746954639388,-400.0,0.00019891,2]
[360724927,1746954639397,-400.0,0.00019891,2]
[360724928,1746954639407,-609.9,0.00019891,2]
[360724929,1746954639418,-609.9,0.00019891,2]
[360724930,1746954639427,-609.9,0.00019891,2]
[360724931,1746954639438,-609.9,0.00019891,2]
[360724932,1746954639448,-400.0,0.00019891,2]
[360724933,1746954639457,-400.0,0.00019891,2]
[360724934,1746954639467,-400.0,0.00019891,2]
[360724935,1746954639476,-400.0,0.00019891,2]
[360724936,1746954639486,-400.0,0.00019891,2]
[360724937,1746954639496,-400.0,0.00019891,2]
[360724938,1746954639506,-400.0,0.00019891,2]
[360724939,1746954639516,-400.0,0.00019891,2]
[360724940,1746954639525,-400.0,0.00019891,2]
[360724941,1746954639535,-400.0,0.00019891,2]
[360724942,1746954639545,-400.0,0.00019891,2]
[360724944,1746954639555,-400.0,0.00019892,2]
[360724945,1746954639565,-400.0,0.00019892,2]
[360724946,1746954639574,-390.25055335,0.00019892,2]
[360724947,1746954639583,-163.3379464,0.00019892,2]
[360724948,1746954639593,-500.0,0.00019892,2]
[360724949,1746954639603,-400.0,0.00019892,2]
[360724951,1746954639612,-400.0,0.00019892,2]
[360724952,1746954639621,-400.0,0.00019892,2]
[360724953,1746954639631,-400.0,0.00019892,2]
[360724954,1746954639640,-400.0,0.00019892,2]
[360724955,1746954639649,-400.0,0.00019892,2]
[360724956,1746954639659,-400.0,0.00019892,2]
[360724957,1746954639669,-400.0,0.00019892,2]
[360724958,1746954639678,-400.0,0.00019892,2]
[360724959,1746954639688,-400.0,0.00019892,2]
[360724960,1746954639699,-400.0,0.00019892,2]
[360724961,1746954639708,-400.0,0.00019892,2]
[360724962,1746954639718,-400.0,0.00019892,2]
[360724963,1746954639728,-422.68385831,0.00019892,2]
[360724964,1746954639737,-400.0,0.00019892,2]
[360724965,1746954639747,-255.26,0.00019892,2]
[360724966,1746954639757,-226.80925645,0.00019892,2]
[360724967,1746954639766,-400.0,0.00019892,2]
[360724968,1746954639775,-400.0,0.00019892,2]
[360724969,1746954639785,-400.0,0.00019892,2]
[360724970,1746954639795,-400.0,0.00019892,2]
[360724971,1746954639804,-400.0,0.00019892,2]
[360724972,1746954639815,-268.98562119,0.00019892,2]
[360724973,1746954639824,-173.86038245,0.00019892,2]
[360724974,1746954639834,-400.0,0.00019892,2]
[360724975,1746954639844,-400.0,0.00019892,2]
[360724976,1746954639854,-150.35,0.00019892,2]
[360724977,1746954639863,-400.0,0.00019892,2]
[360724978,1746954639873,-400.0,0.00019892,2]
[360724979,1746954639883,-400.0,0.00019892,2]
[360724980,1746954639892,-400.0,0.00019892,2]
[360724981,1746954639902,-400.0,0.00019892,2]
[360724982,1746954639912,-400.0,0.00019892,2]
[360724983,1746954640060,-400.0,0.00019892,2]
[360724984,1746954640070,-400.0,0.00019892,2]
[360724985,1746954640080,-400.0,0.00019892,2]
[360724986,1746954640089,-400.0,0.00019892,2]
[360724987,1746954640098,-400.0,0.00019892,2]
[360724988,1746954640107,-400.0,0.00019892,2]
[360724989,1746954640117,-394.2046432,0.00019892,2]
[360724990,1746954640126,-548.77627425,0.00019892,2]
[360724991,1746954640135,-400.0,0.00019892,2]
[360724992,1746954640145,-400.0,0.00019892,2]
[360724994,1746954640155,-400.0,0.00019892,2]
[360724996,1746954640164,-400.0,0.00019892,2]
[360724998,1746954640173,-400.0,0.00019892,2]
[360725000,1746954640183,-400.0,0.00019892,2]
[360725001,1746954640192,-400.0,0.00019892,2]
[360725002,1746954640202,-400.0,0.00019892,2]
[360725003,1746954640212,-400.0,0.00019892,2]
[360725004,1746954640221,-400.0,0.00019892,2]
[360725005,1746954640231,-400.0,0.00019892,2]
[360725006,1746954640241,-400.0,0.00019892,2]
[360725007,1746954640250,-400.0,0.00019892,2]
[360725008,1746954640260,-400.0,0.00019892,2]
[360725009,1746954640269,-400.0,0.00019892,2]
[360725010,1746954640280,-400.0,0.00019892,2]
[360725011,1746954640290,-467.86184845,0.00019892,2]
[360725012,1746954640299,-400.0,0.00019892,2]
[360725013,1746954640309,-400.0,0.00019892,2]
[360725014,1746954640318,-400.0,0.00019892,2]
[360725015,1746954640328,-400.0,0.00019892,2]
[360725016,1746954640337,-400.0,0.00019892,2]
[360725017,1746954640347,-400.0,0.00019892,2]
[360725018,1746954640357,-400.0,0.00019892,2]
[360725019,1746954640366,-400.0,0.00019892,2]
[360725020,1746954640375,-400.0,0.00019892,2]
[360725021,1746954640385,-400.0,0.00019892,2]
[360725022,1746954640395,-400.0,0.00019892,2]
[360725023,1746954640405,-400.0,0.00019892,2]
[360725024,1746954640415,-495.73,0.00019892,2]
[360725025,1746954640424,-425.41,0.00019892,2]
[360725026,1746954640433,-400.0,0.00019892,2]
[360725027,1746954640443,-425.41,0.00019892,2]
[360725028,1746954640453,-501.42816844,0.00019892,2]
[360725029,1746954640463,-425.41,0.00019892,2]
[360725030,1746954640472,-425.41,0.00019892,2]
[360725031,1746954640481,-400.0,0.00019892,2]
[360725032,1746954640490,-400.0,0.00019892,2]
[360725033,1746954640499,-400.0,0.00019892,2]
[360725034,1746954640509,-178.95,0.00019892,2]
[360725035,1746954640519,-400.0,0.00019892,2]
[360725036,1746954640528,-400.0,0.00019892,2]
[360725037,1746954640538,-400.0,0.00019892,2]
[360725038,1746954640547,-400.0,0.00019892,2]
[360725039,1746954640556,-400.0,0.00019892,2]
[360725040,1746954640566,-400.0,0.00019892,2]
[360725041,1746954640575,-400.0,0.00019892,2]